Cogmind - Beta 12 @@@ ROGUE MODE // 2023.03.09 @ 00:10:13 Player: Red Box Result: Destroyed by S-10 Pest with Light Assault Rifle Performance ------------- Evolutions (2) 1000 Regions Visited (9) 1800 Robots Destroyed (161) 805 Value Destroyed (5617) 5617 Prototype IDs (38) 760 Alien Tech Used (0) 0 Bonus (1153) 1153 TOTAL SCORE: 11135 Bonus ------- High Alert Combat Kills 597 Follower Combat Kills 56 Entered Garrisons 200 Aligned with FarCom 300 Cogmind --------- Core Integrity 0/550 Matter 298/300 Energy 200/200 System Corruption 0% Temperature Cool (0) Movement Rolling (145) Ox3 Location -8/Materials Parts ------- > --- POWER (1) -------- Cold Fusion Reactor > --- PROPULSION (2) --- Armored Huge Wheel > --- UTILITY (6) ------ Huge Storage Unit Improved Target Analyzer Core Analyzer Transmission Jammer Layered Medium Armor Plating > --- WEAPON (2) ------- Gauss Cannon > --- INVENTORY (25) --- Enhanced Nuclear Core Reinforced Fission Core Advanced Myomer Leg Armored Wheel Armored Huge Wheel Combat Antigrav System High-capacity Storage Unit Experimental Sensor Array Improved Signal Interpreter Experimental Targeting Computer Hardened Heavy Armor Plating Authchip [R/Combat] Improved System Guard System Restoration Module AS-neutralizer No. 17b Lightning Gun Precision Assault Rifle Precision Assault Rifle 8R-AWN's Boregun Gauss Cannon Missile Launcher Powered Hammer Deploy-a-Sentry Peak State ------------ > --- POWER ------------ Reinforced Fission Core > --- PROPULSION ------- Armored Huge Wheel > --- UTILITY ---------- Huge Storage Unit Experimental Sensor Array Improved Target Analyzer Transmission Jammer Heavy Armor Plating > --- WEAPON ----------- 8R-AWN's Boregun Gauss Cannon > --- INVENTORY -------- Cold Fusion Reactor Advanced Myomer Leg Armored Wheel Armored Huge Wheel Combat Antigrav System Improved Heat Sink High-capacity Storage Unit Improved Signal Interpreter Experimental Targeting Computer Recoil Stabilizer Hardened Heavy Armor Plating Improved System Guard System Restoration Module AS-neutralizer No. 17b Advanced Beam Rifle EM Pulse Cannon Precision Assault Rifle Precision Assault Rifle Gauss Cannon Gauss Cannon Missile Launcher Powered Hammer Deploy-a-Sentry [Rating: 64] Favorites ----------- Power Improved Ion Engine Engine Improved Ion Engine Power Core Reinforced Fission Core Reactor Cold Fusion Reactor Propulsion Compact Wheel Treads Improved Treads Leg Aluminum Leg Wheel Compact Wheel Utility Huge Storage Unit Device Improved Heat Sink Storage Huge Storage Unit Processor Improved Target Analyzer Hackware Hacking Suite Protection Core Shielding Weapon Light EM Pulse Cannon Energy Gun Improved Medium Laser Energy Cannon Light EM Pulse Cannon Ballistic Gun Assault Rifle Ballistic Cannon Gauss Cannon Launcher Rocket Launcher Special Weapon Mining Laser Impact Weapon Powered Hammer Slashing Weapon Longsword +1 Special Melee Weapon Datajack Build | -11 -10 -10 -9 -9 -9 -8 -8 -8 -8 ------- Run | Jun Mat Min Mat Min Exi Min Mat Gar Mat Slots Evolved 4 | . . . 2 . . . 2 . . Power . | . . . . . . . . . . Propulsion . | . . . . . . . . . . Utility 4 | . . . 2 . . . 2 . . Weapon . | . . . . . . . . . . Parts Attached 238 | 8 30 12 23 14 42 12 55 39 3 Power 19 | 2 1 1 2 . 4 1 4 2 2 Engine 8 | 2 1 . 2 . . . 2 1 . Core 7 | . . 1 . . 2 1 2 . 1 Reactor 4 | . . . . . 2 . . 1 1 Propulsion 25 | 2 6 2 2 1 5 . 5 2 . Treads 1 | . . . . 1 . . . . . Leg 7 | 2 4 . . . 1 . . . . Wheel 17 | . 2 2 2 . 4 . 5 2 . Hover . | . . . . . . . . . . Flight . | . . . . . . . . . . Utility 83 | 2 7 1 8 3 10 4 25 23 . Device 51 | 1 5 1 1 2 4 3 17 17 . Storage 7 | 1 2 . 2 . 2 . . . . Processor 6 | . . . 1 . . 1 1 3 . Hackware 2 | . . . 1 . . . 1 . . Protection 17 | . . . 3 1 4 . 6 3 . Artifact . | . . . . . . . . . . Weapon 111 | 2 16 8 11 10 23 7 21 12 1 Energy Gun 8 | . 1 . 2 . 2 1 1 1 . Energy Cannon 53 | . 12 5 7 6 10 3 9 1 . Ballistic Gun 8 | 2 . . . . 2 1 2 1 . Ballistic Cannon 11 | . . . . . . . 5 5 1 Launcher 16 | . 1 1 2 2 4 2 4 . . Special Weapon 2 | . . 2 . . . . . . . Impact Weapon 4 | . . . . . . . . 4 . Slashing Weapon 7 | . . . . 2 5 . . . . Piercing Weapon . | . . . . . . . . . . Special Melee Weapon 2 | . 2 . . . . . . . . Unidentified Prototypes 9 | . 1 . . . 5 . 2 . 1 Corrupted Parts 2 | . . . . . . 2 . . . System Corruption 3 | . . . . . . 3 . . . Parts Lost 33 | . . 3 3 3 4 . 18 . 2 Power 2 | . . 1 . . . . 1 . . Propulsion 6 | . . 1 . 1 2 . 2 . . Utility 15 | . . . . 2 2 . 10 . 1 Weapon 10 | . . 1 3 . . . 5 . 1 Highest Loss Streak 3 | . . 3 1 2 2 . 3 . 2 To Critical Strikes 1 | . . . . . 1 . . . . Average Slot Usage (%) 93 | . 98 98 97 95 96 100 88 81 90 Engine 7 | . 13 . 10 11 9 . 3 . 7 Core 3 | . . 13 . . . 11 5 7 . Treads 2 | . . . . 4 8 . . . . Leg 3 | . 24 . . . . . . . . Wheel 13 | . 3 27 21 17 13 22 12 9 9 Device 16 | . 13 14 10 15 17 11 22 15 18 Storage 10 | . 14 14 11 11 11 11 9 9 9 Processor 5 | . . . 11 . . 9 8 11 18 Protection 8 | . . . 4 13 12 12 8 8 9 Energy Gun 1 | . . . . . 1 13 2 . . Energy Cannon 13 | . 21 27 21 20 12 7 12 . . Ballistic Cannon 3 | . . . . . . . 2 15 18 Naked Turns . | . . . . . . . . . . Heaviest Build 137 | 15 34 34 99 100 116 112 137 137 116 Greatest Support 32 | 20 20 26 32 32 24 24 28 28 28 Greatest Overweight (x) 13 | 1 4 3 3 6 8 4 13 9 4 Average Overweight (x) 3 | . . 1 1 4 5 4 4 3 3 Largest Inventory Capacity 25 | 8 15 15 25 25 25 25 25 25 25 Average Capacity 21 | 7 9 15 17 25 23 25 25 25 25 Most Carried 25 | 6 15 15 25 25 25 25 25 25 25 Average Carried 20 | 4 8 14 16 24 20 24 23 24 24 Final Capacity 25 | 8 15 15 25 25 25 25 25 25 25 Final Carried 25 | 6 15 15 25 25 25 25 25 25 25 Class Distribution -------------------- 89% | Mutant 6% | Scavenger-Mutant 4% | Infiltrator-Mutant Dominant Class ---------------- Mutant | -10/Materials Mutant | -10/Mines Mutant | -9/Materials Mutant | -9/Mines Mutant | -9/Exiles Mutant | -8/Mines Mutant | -8/Materials Mutant | -8/Garrison Mutant | -8/Materials Resources | -11 -10 -10 -9 -9 -9 -8 -8 -8 -8 ----------- Run | Jun Mat Min Mat Min Exi Min Mat Gar Mat Matter Collected 4107 | 190 431 279 263 169 634 156 869 839 277 Remotely . | . . . . . . . . . . Salvage Created 5507 | 36 320 151 1233 208 314 193 2043 602 407 Parts 323 | 3 23 6 83 19 44 8 84 29 24 Haulers Intercepted 6 | . . . 3 . . . 2 . 1 Recyclers Shooed 6 | . . . 2 . . . 4 . . Parts Field Recycled . | . . . . . . . . . . Retrieved Matter . | . . . . . . . . . . Parts Self-Destructed . | . . . . . . . . . . Prevented . | . . . . . . . . . . Kills | -11 -10 -10 -9 -9 -9 -8 -8 -8 -8 ------- Run | Jun Mat Min Mat Min Exi Min Mat Gar Mat Combat Hostiles Destroyed 139 | . 12 7 29 12 8 6 45 15 5 Melee 3 | . . . . 1 2 . . . . Guns 12 | . 4 . 1 . . 1 4 2 . Cannons 73 | . 6 5 20 5 . 1 20 11 5 AOE 43 | . 2 2 6 6 6 4 17 . . Classes Destroyed 15 | 1 3 1 4 1 2 . 3 . . Worker 3 | . . . 1 . . . 1 . 1 Tunneler 2 | 2 . . . . . . . . . Hauler 6 | . . . 3 . . . 2 . 1 Recycler 2 | . . . . . . . 1 . 1 Turret 1 | . . . . . 1 . . . . Watcher 13 | . 3 . 3 . . . 5 . 2 Swarmer 43 | . 9 3 12 8 . . 11 . . Grunt 52 | . 3 2 8 3 . 6 21 7 2 Brawler 5 | . . . 1 . . . 2 1 1 Protector 1 | . . . . . . . 1 . . Sentry 24 | . . . 8 . . . 9 5 2 Demolisher 1 | . . . . 1 . . . . . Hunter 3 | . . . . . . . 1 2 . Zionite 2 | . . . . . 2 . . . . Assembled 9 | . . 2 . . 7 . . . . Best Kill Streak 7 | 2 4 3 5 4 7 3 5 3 3 Combat Bots Only 7 | . 3 3 4 4 7 3 4 3 2 Max Kills in Single Turn 3 | 1 2 1 3 3 3 2 3 1 1 Gunslinging . | . . . . . . . . . . Exploded 3 | . 2 1 3 3 3 2 3 . . Melee 1 | . . . . 1 1 . . . . Uniques/NPCs Destroyed 4 | . . . . . 4 . . . . 8R-AWN (-9/Exiles) EX-HEX (-9/Exiles) EX-BIN (-9/Exiles) EX-DEC (-9/Exiles) Combat | -11 -10 -10 -9 -9 -9 -8 -8 -8 -8 -------- Run | Jun Mat Min Mat Min Exi Min Mat Gar Mat Damage Taken 6338 | . 356 178 593 277 1189 292 1926 1066 461 Core 918 | . 97 17 133 35 52 27 302 181 74 Absorbed by Shields 257 | . . . . . 46 . 211 . . Redirected to Shielding 63 | . . . . 7 . 3 53 . . Regen/Repaired (Parts) 1492 | . 51 . 131 . . . 1104 . 206 Core Remaining (%) 64 | 100 . 54 . . . 38 . . . Volleys Fired 380 | 3 35 16 55 12 43 20 116 63 17 Largest 2 | 2 2 2 2 2 2 2 2 2 2 Hottest 138 | 40 112 112 112 136 112 124 138 124 96 Shots Fired 652 | 6 64 22 108 24 57 32 208 97 34 Gun 162 | 6 36 . 8 . 31 25 44 12 . Cannon 441 | . 27 14 97 20 12 2 150 85 34 Launcher 44 | . 1 3 3 4 14 5 14 . . Special 5 | . . 5 . . . . . . . Kinetic 214 | 6 36 . . . 24 8 23 83 34 Thermal 138 | . . 5 8 16 19 19 63 8 . Explosive 30 | . 1 3 3 4 5 5 9 . . Electromagnetic 270 | . 27 14 97 4 9 . 113 6 . Robot Hit Streak 14 | 4 8 7 10 14 3 6 13 9 4 Robot Miss Streak 7 | 1 4 1 3 1 7 2 5 4 5 Penetration Max 1 | . . . . . . . . 1 . Secondary Targets . | . . . . . . . . . . Shots Hit Robots 421 | 4 37 12 69 17 51 14 155 47 15 Core Hits 236 | 2 15 9 34 10 35 17 87 17 10 Critical Kills 1 | . . . . . . . . 1 . Critical Parts Destroyed 2 | . . . . . 1 . . 1 . Critical Strikes 27 | . . . 2 . 1 2 7 11 4 Burn 6 | . . . . . . 2 2 2 . Destroy 2 | . . . . . 1 . . 1 . Blast 10 | . . . . . . . . 6 4 Corrupt 8 | . . . 2 . . . 5 1 . Smash 1 | . . . . . . . . 1 . Melee Attacks 62 | . . . . 2 45 . . 15 . Impact 15 | . . . . . . . . 15 . Slashing 47 | . . . . 2 45 . . . . Piercing . | . . . . . . . . . . Sneak Attacks . | . . . . . . . . . . Combat Hostiles . | . . . . . . . . . . Follow-up Attacks 11 | . . . . . 11 . . . . Damage Inflicted 14113 | 51 805 470 2229 675 1985 631 5170 1602 495 Guns 1538 | 51 265 . 73 . 208 186 569 186 . Cannons 7266 | . 391 263 1617 282 144 20 2801 1253 495 Explosions 4041 | . 149 207 534 327 489 425 1800 110 . Melee 1263 | . . . . 66 1144 . . 53 . Ramming 5 | . . . 5 . . . . . . Kinetic 2430 | 51 265 . . . 157 . 298 1164 495 Thermal 2670 | . 65 . 144 262 195 206 1556 242 . Explosive 2799 | . 84 207 463 327 383 425 910 . . Electromagnetic 4946 | . 391 263 1617 20 106 . 2406 143 . Impact 53 | . . . . . . . . 53 . Slashing 1210 | . . . . 66 1144 . . . . Piercing . | . . . . . . . . . . Highest Corruption 4 | . 4 4 . . 1 4 . . . Average Corruption 2 | . 4 4 . . 1 1 . . . Corruption Purged . | . . . . . . . . . . Corruption Blocked . | . . . . . . . . . . Effects 33 | . 7 14 . . 3 9 . . . Message Errors 5 | . 1 3 . . . 1 . . . Matter Fused 11 | . 3 4 . . . 4 . . . Heat Flow Errors 4 | . 2 . . . 1 1 . . . Energy Discharges 5 | . 1 3 . . . 1 . . . Parts Fused 1 | . . . . . 1 . . . . Data Loss (minor) 3 | . . 3 . . . . . . . Data Loss (major) 2 | . . 1 . . . 1 . . . Misfires 1 | . . . . . 1 . . . . Alerts 1 | . . . . . . 1 . . . Overload Shots . | . . . . . . . . . . Overflow Damage 351 | . 31 15 52 39 20 . 143 41 10 Projectiles 105 | . 19 . 24 . . . 37 15 10 Explosions 220 | . 12 15 28 39 20 . 106 . . Melee 26 | . . . . . . . . 26 . Knockbacks 20 | . . . . . . . 13 6 1 Impact . | . . . . . . . . . . Kinetic 19 | . . . . . . . 13 5 1 Secondary 1 | . . . . . . . . 1 . Self-Inflicted Damage 492 | . 62 93 27 11 75 15 161 48 . Shots 16 | . 2 3 1 1 3 1 4 1 . Rammed 1 | . . . 1 . . . . . . Targets Rammed 1 | . . . 1 . . . . . . Kicked . | . . . . . . . . . . Crushed . | . . . . . . . . . . Highest Temperature 507 | . 204 153 189 303 218 276 462 507 407 Average Temperature 101 | . 67 44 64 124 81 94 106 140 110 Received Heat Transfer 1925 | . 60 6 135 78 . 198 872 342 234 Effects 22 | . 1 . . 3 3 . 1 14 . Shutdowns 2 | . . . . . . . 1 1 . Energy Bleed 5 | . 1 . . . 1 . . 3 . Interference 8 | . . . . 3 2 . . 3 . Short Circuit 3 | . . . . . . . . 3 . Damage (major) 4 | . . . . . . . . 4 . Siege Activations . | . . . . . . . . . . Robots Corrupted 10 | . . . 3 . 1 . 5 1 . Combat Hostiles 7 | . . . 2 . . . 4 1 . Parts Fried 33 | . 3 . 11 . . . 18 1 . Impact Corruptions 1 | . . . . . . . . 1 . Robots Melted . | . . . . . . . . . . Combat Hostiles . | . . . . . . . . . . Parts Melted 10 | . . . . 2 1 . 5 2 . Heat Transferred 4835 | . 100 . 248 444 370 592 2611 470 . Parts Sabotaged . | . . . . . . . . . . Parts Stolen . | . . . . . . . . . . Parts Stripped . | . . . . . . . . . . Power Chain Reactions 13 | . 2 . 2 . . . 8 1 . Missiles Intercepted . | . . . . . . . . . . Alert | -11 -10 -10 -9 -9 -9 -8 -8 -8 -8 ------- Run | Jun Mat Min Mat Min Exi Min Mat Gar Mat Peak Influence 1651 | 10 160 116 482 226 . 180 674 1651 947 Initial 804 | . 6 28 7 132 . . . 410 804 Average 354 | 2 48 62 348 108 . 73 294 885 846 Maximum Alert Level 5 | . . . 2 1 . . 2 5 3 Low Security (%) 43 | 100 100 100 4 75 . 100 36 . . Level 1 20 | . . . 59 24 . . 34 . . Level 2 21 | . . . 36 . . . 28 49 . Level 3 9 | . . . . . . . . 20 100 Level 4 4 | . . . . . . . . 29 . Level 5 . | . . . . . . . . . . High Security . | . . . . . . . . . . Max Security . | . . . . . . . . . . Squads Dispatched 13 | . 1 1 4 . . . 6 . 1 Investigation 7 | . 1 1 3 . . . 2 . . Extermination . | . . . . . . . . . . Reinforcement 4 | . . . 1 . . . 3 . . Assault 2 | . . . . . . . 1 . 1 Garrison . | . . . . . . . . . . Intercept . | . . . . . . . . . . Searches Triggered . | . . . . . . . . . . Construction Impeded . | . . . . . . . . . . Haulers Reinforced . | . . . . . . . . . . Active Scanning Responses . | . . . . . . . . . . Cargo Convoy Interrupts . | . . . . . . . . . . Stealth | -11 -10 -10 -9 -9 -9 -8 -8 -8 -8 --------- Run | Jun Mat Min Mat Min Exi Min Mat Gar Mat Distress Signals 6 | . 1 . 2 . . . 1 . 2 Communications Jammed 27 | . . . . . . . 19 . 8 Distress Signals 27 | . . . . . . . 19 . 8 Times Spotted 241 | . 21 7 41 12 57 6 61 16 20 Peak Tracking Total 9 | . 4 3 6 4 9 3 7 3 8 Tactical Retreats 32 | . 2 1 1 . 19 . 7 1 1 Traps | -11 -10 -10 -9 -9 -9 -8 -8 -8 -8 ------- Run | Jun Mat Min Mat Min Exi Min Mat Gar Mat Traps Triggered 12 | . 6 . . . . . 2 4 . Indirectly . | . . . . . . . . . . Trap Hack Attempts 31 | . 31 . . . . . . . . Triggered . | . . . . . . . . . . Disarmed 3 | . . . 3 . . . . . . Reprogrammed 2 | . 2 . . . . . . . . Reused . | . . . . . . . . . . Traps Extracted . | . . . . . . . . . . Installed . | . . . . . . . . . . Triggered . | . . . . . . . . . . Exploded 1 | . . . . . . . . 1 . Machines | -11 -10 -10 -9 -9 -9 -8 -8 -8 -8 ---------- Run | Jun Mat Min Mat Min Exi Min Mat Gar Mat Machines Disabled 27 | . 1 . 1 1 13 . 2 7 2 Max in Single Turn 2 | . 1 . 1 1 2 . 1 1 1 Garrison Relay 5 | . . . . . . . . 5 . Phase Generator 1 | . . . . . . . . 1 . Machines Repaired . | . . . . . . . . . . Machines Sabotaged . | . . . . . . . . . . Overloaded Fab Kills . | . . . . . . . . . . Hacking | -11 -10 -10 -9 -9 -9 -8 -8 -8 -8 --------- Run | Jun Mat Min Mat Min Exi Min Mat Gar Mat Machines Accessed 50 | . 10 1 17 1 2 . 14 3 2 Terminals 30 | . 7 . 11 . . . 8 3 1 Fabricators . | . . . . . . . . . . Repair Stations 6 | . 1 . 2 . . . 2 . 1 Recycling Units 6 | . 2 . 2 . . . 2 . . Scanalyzers 3 | . . . 2 . . . 1 . . Garrison Access 1 | . . . . . . . 1 . . Total Hacks 142 | . 27 1 54 1 2 . 42 7 8 Successful 89 | . 15 1 38 1 2 . 25 2 5 Failed 52 | . 12 . 15 . . . 17 5 3 Catastrophic 6 | . . . 2 . . . 2 1 1 Database Lockouts 1 | . . . 1 . . . . . . Manual 76 | . 16 . 29 . 1 . 23 1 6 Terminals 90 | . 21 . 34 . . . 22 7 6 Fabricators . | . . . . . . . . . . Repair Stations 23 | . 2 . 9 . . . 10 . 2 Recycling Units 13 | . 4 . 4 . . . 5 . . Scanalyzers 11 | . . . 7 . . . 4 . . Garrison Access 1 | . . . . . . . 1 . . Terminal Hacks 24 | . 6 1 9 1 2 . 3 2 . Record 1 | . . . . . 1 . . . . Robot Analysis 6 | . 2 . 2 . . . 2 . . Prototype ID Bank 2 | . 1 . 1 . . . . . . Open Door 3 | . . 1 . 1 . . . 1 . Branch Access Points 1 | . . . 1 . . . . . . Emergency Access Points 1 | . . . . . . . . 1 . Terminal Index 1 | . 1 . . . . . . . . Unreport Threat 1 | . . . . . . . 1 . . Locate Traps 4 | . 2 . 2 . . . . . . Disarm Traps 1 | . . . 1 . . . . . . Hauler Manifests 1 | . . . 1 . . . . . . Registered Components 1 | . . . 1 . . . . . . EX-Prototype ID Bank 1 | . . . . . 1 . . . . Fabricator Hacks . | . . . . . . . . . . Repair Station Hacks 20 | . 2 . 8 . . . 8 . 2 Scan Component 10 | . 1 . 4 . . . 4 . 1 Repair 10 | . 1 . 4 . . . 4 . 1 Recycling Unit Hacks 6 | . 2 . 2 . . . 2 . . Report Inventory 2 | . . . 2 . . . . . . Retrieve Components 4 | . 2 . . . . . 2 . . Scanalyzer 9 | . . . 5 . . . 4 . . Insert Component 4 | . . . 2 . . . 2 . . Analyze 5 | . . . 3 . . . 2 . . Garrison Access Hacks 1 | . . . . . . . 1 . . Unlock Access 1 | . . . . . . . 1 . . Unauthorized Hacks 29 | . 5 . 14 . . . 7 . 3 Terminals 25 | . 5 . 12 . . . 5 . 3 Track 5 | . 1 . 3 . . . . . 1 Assimilate 5 | . 2 . 1 . . . 2 . . Botnet 10 | . 1 . 6 . . . 2 . 1 Operators 5 | . 1 . 2 . . . 1 . 1 Fabricators . | . . . . . . . . . . Repair Stations . | . . . . . . . . . . Recycling Units 4 | . . . 2 . . . 2 . . Reject 4 | . . . 2 . . . 2 . . Scanalyzers . | . . . . . . . . . . Garrison Access . | . . . . . . . . . . Data Cores Recovered . | . . . . . . . . . . Used . | . . . . . . . . . . Hacking Detections 41 | . 9 . 15 . . . 12 3 2 Full Trace Events 4 | . . . 2 . . . 1 1 . Feedback Events . | . . . . . . . . . . Feedback Blocked . | . . . . . . . . . . Robot Schematics Acquired . | . . . . . . . . . . Robots Built . | . . . . . . . . . . Authchips . | . . . . . . . . . . Time . | . . . . . . . . . . Total Robot Build Rating . | . . . . . . . . . . Part Schematics Acquired 1 | . . . . . . . 1 . . Parts Built . | . . . . . . . . . . Authchips . | . . . . . . . . . . Time . | . . . . . . . . . . Total Part Build Rating . | . . . . . . . . . . Parts Repaired 10 | . 1 . 4 . . . 4 . 1 Time 467 | . 32 . 198 . . . 176 . 61 Parts Recycled . | . . . . . . . . . . Recycled Matter . | . . . . . . . . . . Retrieved Matter . | . . . . . . . . . . Retrieved Components 28 | . 9 . . . . . 19 . . Parts Scanalyzed 2 | . . . 1 . . . 1 . . Part Schematics Acquired 1 | . . . . . . . 1 . . Parts Damaged . | . . . . . . . . . . Bothacking | -11 -10 -10 -9 -9 -9 -8 -8 -8 -8 ------------ Run | Jun Mat Min Mat Min Exi Min Mat Gar Mat Used RIF Installer . | . . . . . . . . . . Robots Hacked . | . . . . . . . . . . Non-combat . | . . . . . . . . . . Combat . | . . . . . . . . . . Robot Hacks Applied . | . . . . . . . . . . Relay Couplers Released 20 | . . . . . . . . 20 . Machine Destruction 20 | . . . . . . . . 20 . Fabnet Peak Effective % . | . . . . . . . . . . Robots Rewired . | . . . . . . . . . . Allies Hacked . | . . . . . . . . . . Hacks Repelled . | . . . . . . . . . . Allies | -11 -10 -10 -9 -9 -9 -8 -8 -8 -8 -------- Run | Jun Mat Min Mat Min Exi Min Mat Gar Mat Total Allies 4 | . 1 . 1 . . . 1 1 . Largest Group 1 | . 1 1 1 . . . 1 1 . Highest-Rated Group 31 | . 10 10 10 . . . 10 31 . Highest-Rated Ally 31 | . 10 10 10 . . . 10 31 . Total Orders 14 | . 4 . . . . . 10 . . STAY 7 | . 2 . . . . . 5 . . FOLLOW 7 | . 2 . . . . . 5 . . Ally Attacks 11 | . . . . . . . . 11 . Total Damage 128 | . . . . . . . . 128 . Kills 1 | . . . . . . . . 1 . Allies Corrupted . | . . . . . . . . . . Allies Melted . | . . . . . . . . . . Intel | -11 -10 -10 -9 -9 -9 -8 -8 -8 -8 ------- Run | Jun Mat Min Mat Min Exi Min Mat Gar Mat Robot Analysis Total 6 | . 2 . 2 . . . 2 . . Derelict Logs Recovered 3 | . . 2 . 1 . . . . . Drone Launches . | . . . . . . . . . . Drone Recoveries . | . . . . . . . . . . Exploration | -11 -10 -10 -9 -9 -9 -8 -8 -8 -8 ------------- Run | Jun Mat Min Mat Min Exi Min Mat Gar Mat Turns Passed 17994 | 93 2194 758 2242 1528 3648 622 3636 2408 865 Spaces Moved 9758 | 58 1241 613 1396 800 1838 338 1661 1334 479 Core 11 | 8 3 . . . . . . . . Treads . | . . . . . . . . . . Legs 1061 | 50 1011 . . . . . . . . Wheels 8686 | . 227 613 1396 800 1838 338 1661 1334 479 Hover . | . . . . . . . . . . Flight . | . . . . . . . . . . Fastest Speed 50 | 50 95 95 100 145 130 150 135 145 145 Average Speed 149 | 112 130 98 117 161 178 150 162 157 159 Slowest Speed 275 | 120 250 125 145 190 210 150 275 225 160 Overloaded Moves . | . . . . . . . . . . Propulsion Burnouts . | . . . . . . . . . . Robots Hopped . | . . . . . . . . . . Cave-ins Triggered . | . . . . . . . . . . Exploration Rate (%) 73 | 4 98 96 95 97 91 30 91 95 41 Regions Visited 9 Branch Regions 4 Pre-discovered Areas 3 | . . 1 . 1 1 . . . . Known Exits Taken 2 | . . . 1 . . . 1 . . Unknown Exits Taken 6 | 1 1 1 . 1 1 1 . . . Scrap Searched 3 | . . 1 . 2 . . . . . Spaces Dug 37 | . . . . . 2 13 3 19 . Terrain Destroyed 391 | . 12 20 29 38 40 60 114 31 47 Melee 10 | . . . . . 2 . . 8 . Projectile 53 | . . 1 . . 3 13 5 13 18 AOE 328 | . 12 19 29 38 35 47 109 10 29 Terrain Rammed . | . . . . . . . . . . Walls Destroyed . | . . . . . . . . . . Machines Disabled . | . . . . . . . . . . Actions | -11 -10 -10 -9 -9 -9 -8 -8 -8 -8 --------- Run | Jun Mat Min Mat Min Exi Min Mat Gar Mat Total 12386 | 76 1739 732 1886 1006 2104 417 2380 1501 545 Wait 1652 | . 372 79 375 170 54 43 490 29 40 Move 9750 | 57 1240 612 1395 799 1837 337 1661 1333 479 Hop . | . . . . . . . . . . Pick Up 154 | 7 18 7 26 5 43 1 32 12 3 Fast Attach 44 | 7 13 1 2 1 6 3 10 . 1 Attach 59 | . 4 4 8 3 12 . 20 7 1 Detach 12 | . 1 . . 1 6 . 4 . . Swap 136 | 1 13 7 13 10 24 9 26 32 1 Drop 116 | 1 12 6 11 3 45 4 21 10 3 Fire 380 | 3 35 16 55 12 43 20 116 63 17 Melee 51 | . . . . 2 34 . . 15 . Ram 1 | . . . 1 . . . . . . Kick . | . . . . . . . . . . Crush . | . . . . . . . . . . Escape Stasis . | . . . . . . . . . . Rewire . | . . . . . . . . . . Trap 31 | . 31 . . . . . . . . Miscellaneous . | . . . . . . . . . . Route ------- -11/Junkyard -10/Materials (discovered 5 exits: *Mat x3 / *Min x2) -10/Mines (discovered 2 exits: *Mat x2) -9/Materials (discovered 4 exits: *Mat x3 / *Min) -9/Mines (discovered 3 exits: *Mat x2 / *Exi) -9/Exiles -8/Mines -8/Materials (discovered 3 exits: [*Fac x2] / Gar) -8/Garrison (discovered 3 exits: *Mat x3) -8/Materials (discovered 1 exit: [*Fac]) History --------- Turn | Location | Event 6 | -11/Junkyard | Discovered new exit (range 15) 94 | -11/Junkyard | Entered Materials 304 | -10/Materials | Build established: Mutant 543 | -10/Materials | Discovered new exit (range 15) 633 | -10/Materials | Discovered new exit (range 10) 636 | -10/Materials | Discovered new exit (range 16) 719 | -10/Materials | Discovered new exit (range 11) 1274 | -10/Materials | Discovered new exit (range 13) 1612 | -10/Materials | Repaired Lgt. EM Pulse Cannon 2288 | -10/Materials | Entered Mines 2288 | -10/Mines | Accompanied by 1 ally 2329 | -10/Mines | Met a Derelict shopkeep closing up shop 2346 | -10/Mines | Lost 3 parts (1p1n1w) 2461 | -10/Mines | Discovered new exit (range 9) 2473 | -10/Mines | Learned location of Recycling (-7) 2490 | -10/Mines | Excavation squad dispatched 2490 | -10/Mines | A large section of the Mines collapsed 2500 | -10/Mines | Learned Materials security intel 2705 | -10/Mines | Found a damaged Exp. Sensor Array with a note attached 2709 | -10/Mines | Found Prototype Device 2889 | -10/Mines | Discovered new exit (range 8) 2963 | -10/Mines | Received a Rocket Launcher from a helpful Derelict 3046 | -10/Mines | Entered Materials 3046 | -9/Materials | Evolved 2 slots: Utility x2 3241 | -9/Materials | Identified exit to Mines 3339 | -9/Materials | Discovered new exit (range 10) 3384 | -9/Materials | Central database locked down 3809 | -9/Materials | Discovered new exit (range 16) 3833 | -9/Materials | Identified Exp. Sensor Array 4128 | -9/Materials | Discovered new exit (range 12) 4561 | -9/Materials | Repaired Lgt. EM Pulse Cannon 4588 | -9/Materials | Repaired Com. Wheel 4792 | -9/Materials | Repaired Imp. Ion Engine 4901 | -9/Materials | Repaired Exp. Sensor Array 5288 | -9/Materials | Entered Mines 5335 | -9/Mines | Learned Materials terminal intel 5362 | -9/Mines | Assembled infested the area 5483 | -9/Mines | Discovered new exit (range 15) 5500 | -9/Mines | Learned location of Storage (-7) 5600 | -9/Mines | Deemed a non-threat by the Exiles lab entrance 5600 | -9/Mines | Discovered new exit (range 5) 5768 | -9/Mines | Met a Derelict who couldn't figure out how to use a Trap Extractor 6421 | -9/Mines | Discovered new exit (range 7) 6816 | -9/Mines | Entered Exiles 6864 | -9/Exiles | Met 8R-AWN 6891 | -9/Exiles | Met EX-HEX 6963 | -9/Exiles | Met EX-BIN 6984 | -9/Exiles | Met EX-DEC 6995 | -9/Exiles | Learned location of Zion (-6) 7096 | -9/Exiles | Discovered new exit (range 14) 7291 | -9/Exiles | Visited The Gauntlet 8685 | -9/Exiles | Aligned with FarCom system 8686 | -9/Exiles | Given EX-Vault access code 8730 | -9/Exiles | Opened EX-Vault 8742 | -9/Exiles | Found Prototype Slashing Weapon 8746 | -9/Exiles | Found Prototype Device 8749 | -9/Exiles | Found Prototype Device 8754 | -9/Exiles | Identified Skeleton Box 8754 | -9/Exiles | Identified Supersonic Drone Bay 8754 | -9/Exiles | Identified Longsword +1 8792 | -9/Exiles | Warned to stay clear of 0b10 Research branches 9359 | -9/Exiles | Attacked by the Exiles 9421 | -9/Exiles | Destroyed 7 combat bots 9450 | -9/Exiles | Core integrity fell below 50% 9521 | -9/Exiles | Destroyed 8R-AWN 9527 | -9/Exiles | Found Prototype Device 9527 | -9/Exiles | Identified AS-neutralizer No. 17b 9553 | -9/Exiles | Found Prototype Ballistic Gun 9564 | -9/Exiles | Found Prototype Processor 9614 | -9/Exiles | Identified 8R-AWN's Boregun 9887 | -9/Exiles | Destroyed EX-HEX 9897 | -9/Exiles | Destroyed EX-BIN 10074 | -9/Exiles | Destroyed EX-DEC 10119 | -9/Exiles | Found Deploy-a-Sentry 10464 | -9/Exiles | Left Exiles lab with Deploy-a-Sentry 10464 | -9/Exiles | Entered Mines 10735 | -8/Mines | Discovered new exit (range 8) 11086 | -8/Mines | Entered Materials 11086 | -8/Materials | Evolved 2 slots: Utility x2 11087 | -8/Materials | Loaded intel: 12 terminal locations 11774 | -8/Materials | Discovered new exit (range 8) 11829 | -8/Materials | Build established: Scavenger-Mutant 12430 | -8/Materials | Lost 3 parts (2u1w) 12762 | -8/Materials | Repaired Hrd. Heavy Armor Plating? 13032 | -8/Materials | Build established: Infiltrator-Mutant 13501 | -8/Materials | Discovered new exit (range 16) 13882 | -8/Materials | Identified Exp. Targeting Computer 13886 | -8/Materials | First assault squad dispatched 13938 | -8/Materials | Core integrity fell below 50% 14087 | -8/Materials | Build established: Mutant 14097 | -8/Materials | Repaired Arm. Wheel 14142 | -8/Materials | Repaired Hrd. Heavy Armor Plating 14200 | -8/Materials | Repaired Rnf. Fission Core 14722 | -8/Materials | Identified exit to Garrison 14722 | -8/Materials | Entered Garrison 14730 | -8/Garrison | Met a derelict Sapper fleeing the area 14733 | -8/Garrison | Phase Generator disabled 14854 | -8/Garrison | Discovered new exit (range 13) 14997 | -8/Garrison | Garrison Relay disabled 15143 | -8/Garrison | Garrison Relay disabled 15386 | -8/Garrison | Triggered checkpoint 15444 | -8/Garrison | Garrison Relay disabled 15534 | -8/Garrison | Discovered new exit (range 13) 15622 | -8/Garrison | Triggered checkpoint 15954 | -8/Garrison | Triggered checkpoint 16026 | -8/Garrison | Triggered checkpoint 16102 | -8/Garrison | Discovered new exit (range 10) 16172 | -8/Garrison | Garrison Relay disabled 16500 | -8/Garrison | Rescued a captive Derelict 16556 | -8/Garrison | Spotted B-75 Beast 16558 | -8/Garrison | Garrison Relay disabled 16567 | -8/Garrison | Allies destroyed B-75 Beast 16777 | -8/Garrison | Core integrity fell below 20% 17130 | -8/Garrison | Entered Materials 17606 | -8/Materials | Discovered new exit (range 16) 17839 | -8/Materials | Repaired Broken Arm. Huge Wheel? 17930 | -8/Materials | First assault squad dispatched 17995 | -8/Materials | Destroyed by S-10 Pest with Light Assault Rifle Last Messages --------------- 17934_ R-06 Scavenger collects Particle Gun. 17935_ R-06 Scavenger collects Rnf. Ion Engine. 17939_ Acquired 24 matter. 17964_ W-25 Informer sends out distress signal. 17966_ Terminal disabled. 17966_ K-01 Serf collects debris. 17982_ C-30 ARC bursts open, deploying its payload. 17982_ L-31 Rogue unfolds itself. 17982_ G-47 Trooper unfolds itself. 17982_ M-28 Smith unfolds itself. 17982_ K-01 Serf collects debris. 17988_ W-25 Informer distress signal jammed. 17988_ K-01 Serf collects debris. 17989_ W-25 Informer distress signal jammed. 17990_ Gauss Cannon destroyed. 17990_ W-25 Informer distress signal jammed. 17990_ M-28 Smith repairs L-31 Rogue. 17991_ W-25 Informer distress signal jammed. 17991_ Recoil Stabilizer destroyed. 17992_ W-25 Informer distress signal jammed. Map ----- +----------------------------------------------------+ | ???????????????????????????????????????????????? | | ???????????????????????????????????????????????? | | ???????????????????????????????????????????????? | | ???????????????????????????????????????????????? | | ???????????????????????????????????????????????? | | ?????????????????????????????????????????###+### | | ????????????????????????????????????? | | ????????????????????????????????????? | | ????????????????????????????????????? | | ?????????????????????????????????????#########+# | | ???????????????????????????????????????????????? | | ???????????????????????????????????????????????? | | ????????????????????????????? ???????????????? | | ????????????????????????????? #??????????????? | | ????????????????????????????? #??????????????? | | ??????????????????????###???? #??????????????? | | ?????????????????????? ! ???# #??????????????? | | ???????????????????? ?# #??????????????? | | ???????????????????? ?# #??????????????? | | ????????????????????""" """?# #??????????????? | | ?????????????????????"" ""??# #??????????????? | | ?????????????????????"" ""??# #??????????????? | | ?????????????????????? ???# #??????????????? | | ?????????????????????? ???# #??????????????? | | ????????????????????###/###?# #??????????????? | | ????????????????????# @s ### ##?????????????? | | ????????????????????# l #?????????????? | | ????????????????????# #?????????????? | | ????????????????????# g gg #?????????????# | | ????????????????????# u #### #?????????????# | | ????????????????????##w Y##??# m #?????????????# | | ?????????????????????# #???# #?????????????# | | ?????????????????????# k #???# ############### | | ?????????????????????# u#???# % | | ?????????????????????# #???# "%% | | ?????????????????????# #???# % | | ?????????????????????# #???#######+######+#### | | ?????????????????????# #???????? ???# "?? | | ?????????????????????# #???????#* """ ?# """ | | ?????????????????????# #???????# """"" # """ | | ?????????????????????o +???????# """"" # | | ?????????????????????# #???????# """"" # | | ?????????????????????# ????????# """??# | | ?????????????????????? ????????# ???###### | | ?????????????????????? ????????# ?????????? | | ?????????????????????????????????# ?????????? | | ?????????????????????????????????###???????????? | | ???????????????????????????????????????????????? | | ???????????????????????????????????????????????? | | ???????????????????????????????????????????????? | +----------------------------------------------------+ Best States ------------- Heat Dissipation 64 Energy Generation 19 Energy Capacity 310 Matter Stores 300 Matter Capacity 300 Sight Range 16 Robot Scan Range 20 Terrain Scan Range 16 Terrain Scan Density 110 ECM Strength 1 Jamming Range 12 Armor Coverage 600 Resistance: EM 15 Core Shielding 20 Weapon Shielding 66 Evasion (%) 55 Targeting Accuracy 8 Target Analysis 6 Core Analysis 6 Recoil Reduction 4 Offensive Hacking 10 Authchip Count 1 Item Schematics ----------------- Exp. Sensor Array | -8/Materials | Scanalyzed Robot Schematics ------------------ None Fabricated ------------ Nothing Alien Tech Used ----------------- None Achievements -------------- None Challenges ------------ None Game ------ Seed CannonLinkedInterpreter Manual? 0 Play Time 02:16:46 Cumulative 549.2 hours Start 2023.03.08 @ 20:45:25 End 2023.03.09 @ 00:10:13 Sessions 1 Manual Loads 0 Difficulty Rogue Special Mode None Game No. 391 Rogue 391 Adventurer 0 Explorer 0 Win Type - Total 1 Types 1/0/0/0/0/0/0/0/0 Lore% 69 Gallery% 78 Achievement% 58 Wizard Run 0 Options --------- ASCII 0 Keyboard 0 Movement Mouse Keybinds 0 Fullscreen 1 Font 16/SmallcapsGlow Map View 75x55 Tactical HUD 1 Map Filters NONE Filters NONE Steam 1 RUN: f0b81867-34cd-49b1-95cf-d2cf6166d804